bitfinex/quotes_BTCUSD_20220101
["timestamp","ask_amount","ask_price","bid_price","bid_amount"]
[1641031603967,0.8901403,47157.0,47156.0,0.01009129]
[1641031603968,0.7769273,47157.0,47156.0,0.01009129]
[1641031604166,0.7238823,47157.0,47156.0,0.02059129]
[1641031604369,0.00118715,47157.0,47156.0,0.02059129]
[1641031604610,0.00118715,47157.0,47156.0,0.35955829]
[1641031606211,0.00118715,47157.0,47156.0,0.25821901]
[1641031606414,0.00118715,47157.0,47156.0,0.02059129]
[1641031606615,0.00118715,47157.0,47156.0,0.35955829]
[1641031606813,0.00118715,47157.0,47156.0,0.60795516]
[1641031608113,0.00118715,47157.0,47156.0,0.02059129]
[1641031610170,0.00118715,47157.0,47156.0,0.01009129]
[1641031610377,0.00118715,47157.0,47156.0,0.34905829]
[1641031610571,0.15,47162.0,47156.0,0.64963247]
[1641031610770,0.15,47162.0,47158.0,0.10120402]
[1641031610971,0.15,47162.0,47159.0,0.62694017]
[1641031611172,0.15,47162.0,47160.0,0.31990005]
[1641031611385,0.15,47162.0,47161.0,1.04826428]
[1641031612222,0.15,47162.0,47161.0,0.59342636]
[1641031612624,0.15,47162.0,47161.0,0.338967]
[1641031612822,0.15,47162.0,47161.0,0.56298336]
[1641031613423,0.15,47162.0,47161.0,0.338967]
[1641031613624,0.15,47162.0,47159.0,0.00825548]
[1641031614723,0.203026,47162.0,47160.0,0.338967]
[1641031614923,0.203026,47162.0,47159.0,0.00825548]
[1641031615968,0.15,47162.0,47159.0,0.00825548]
[1641031616165,0.15,47162.0,47160.0,0.338967]
[1641031616365,0.15,47162.0,47161.0,0.5941487]
[1641031616568,0.0001,47162.0,47161.0,0.9331157]
[1641031616768,0.0001,47162.0,47161.0,0.6831157]
[1641031617566,0.0001,47162.0,47161.0,1.1387376]
[1641031617965,0.00983874,47172.0,47161.0,1.1387376]
[1641031617966,0.00863255,47172.0,47161.0,1.1387376]
[1641031618171,0.00863255,47172.0,47169.0,0.1]
[1641031618369,3.255e-05,47172.0,47171.0,0.968967]
[1641031618567,3.255e-05,47172.0,47171.0,0.78741757]
[1641031618767,0.0001,47181.0,47180.0,0.37280684]
[1641031618967,0.0001,47181.0,47180.0,0.86489969]
[1641031619169,0.0001,47181.0,47180.0,0.71489969]
[1641031620219,0.0001,47181.0,47180.0,0.35812526]
[1641031620420,0.0001,47181.0,47170.0,0.22015986]
[1641031620421,0.0001,47181.0,47177.0,0.23581901]
[1641031620620,0.0001,47181.0,47171.0,0.27224858]
[1641031620821,0.0001,47181.0,47165.0,0.00128406]
[1641031620822,0.0003469,47180.0,47165.0,0.00128406]
[1641031621021,0.0003469,47180.0,47166.0,0.338967]
[1641031621221,0.00032864,47179.0,47167.0,0.29019304]
[1641031621421,0.053008,47178.0,47168.0,0.58443278]
[1641031621625,0.24962632,47176.0,47168.0,0.58443278]
[1641031621921,0.00025561,47175.0,47171.0,0.00835945]
[1641031622320,0.00023735,47174.0,47171.0,0.00835945]
[1641031622722,0.0002191,47173.0,47171.0,0.00835945]
[1641031623120,0.00020084,47172.0,47171.0,0.00835945]
[1641031623574,0.15804374,47176.0,47171.0,0.00835945]
[1641031624977,0.21105374,47176.0,47171.0,0.00835945]
[1641031625676,0.26105374,47176.0,47171.0,0.00835945]
[1641031625877,0.20804374,47176.0,47171.0,0.00835945]
[1641031626075,0.20804374,47176.0,47172.0,0.00138412]
[1641031626478,0.053014,47174.0,47172.0,0.00138412]
[1641031626878,0.053014,47174.0,47172.0,0.00974626]
[1641031627315,0.20804374,47176.0,47172.0,0.00974626]
[1641031627714,0.15804374,47176.0,47172.0,0.00974626]
[1641031628317,0.0001,47181.0,47172.0,0.00974626]
[1641031628522,0.0001,47181.0,47179.0,0.00127947]
[1641031628916,0.0001,47181.0,47179.0,0.10127947]
[1641031629119,0.0001,47181.0,47179.0,0.05127947]
[1641031629318,0.0001,47181.0,47180.0,0.286107]
[1641031629717,0.00026432,47181.0,47180.0,0.286107]
[1641031629917,0.00026432,47181.0,47180.0,0.339097]
[1641031630521,0.00026432,47181.0,47180.0,0.439097]
[1641031630797,1.25639247,47183.0,47180.0,0.439097]
[1641031631200,1.25639247,47183.0,47180.0,0.539097]
[1641031631412,1.25639247,47183.0,47180.0,0.4404874]
[1641031633501,1.25639247,47183.0,47180.0,0.3874974]
[1641031633899,1.25639247,47183.0,47180.0,0.2874974]
[1641031634099,1.25639247,47183.0,47180.0,0.3874974]
[1641031634920,1.25639247,47183.0,47180.0,0.2874974]
[1641031635320,1.25639247,47183.0,47180.0,0.0013904]
[1641031636522,1.56692969,47183.0,47180.0,0.0013904]
[1641031637924,1.25639247,47183.0,47180.0,0.0013904]
[1641031638562,1.25639247,47183.0,47181.0,0.052992]
[1641031639662,1.25639247,47183.0,47180.0,0.0013904]
[1641031642411,1.25639247,47183.0,47181.0,0.052992]
[1641031643416,1.25639247,47183.0,47182.0,0.00124965]
[1641031643613,1.25639247,47183.0,47182.0,1.14653777]
[1641031643614,0.79099247,47183.0,47182.0,1.14653777]
[1641031643814,0.79099247,47183.0,47182.0,0.67550477]
[1641031644118,0.79099247,47183.0,47182.0,0.82550477]
[1641031644514,0.79099247,47183.0,47182.0,0.95947236]
[1641031645862,0.79099247,47183.0,47182.0,0.90947236]
[1641031647064,0.79099247,47183.0,47182.0,0.90822271]
[1641031647264,0.79099247,47183.0,47182.0,0.75822271]
[1641031647463,0.79099247,47183.0,47182.0,0.62425512]
[1641031648264,0.79073738,47183.0,47182.0,0.62425512]
[1641031649066,0.79073738,47183.0,47182.0,0.75822271]
[1641031655175,0.79073738,47183.0,47182.0,0.80822271]
[1641031655376,0.77803738,47183.0,47182.0,1.36822271]
[1641031655576,0.77803738,47183.0,47182.0,0.95822271]
[1641031656475,0.57787726,47183.0,47182.0,1.37822271]
[1641031656681,0.57787726,47183.0,47182.0,0.95822271]
[1641031657739,0.57787726,47183.0,47182.0,1.45822271]
[1641031659242,0.57787726,47183.0,47182.0,1.55822271]
[1641031661577,0.53322726,47183.0,47182.0,1.55822271]
[1641031663778,0.53322726,47183.0,47182.0,1.45822271]
[1641031664180,0.53322726,47183.0,47182.0,1.25822271]
[1641031664638,0.53322726,47183.0,47182.0,0.838967]
[1641031664641,0.84089555,47183.0,47182.0,0.838967]
[1641031665336,0.84089555,47183.0,47182.0,0.5]
[1641031666541,0.90410855,47183.0,47182.0,0.5]
[1641031667743,0.53322726,47183.0,47182.0,0.5]
[1641031668786,0.53322726,47183.0,47182.0,0.99557821]
[1641031668984,0.53322726,47183.0,47182.0,1.23454521]
[1641031669687,0.53322726,47183.0,47182.0,1.10057762]
[1641031670786,0.53322726,47183.0,47182.0,1.23454521]
[1641031671887,0.53322726,47183.0,47182.0,1.43454521]
[1641031672134,0.0002,47187.0,47185.0,1.19889509]
[1641031672330,0.0002,47187.0,47185.0,0.70481209]
[1641031672535,0.0004,47201.0,47186.0,0.338967]
[1641031672536,0.65070497,47193.0,47186.0,0.338967]
[1641031672731,0.64900497,47193.0,47185.0,0.7079835]
[1641031672930,0.00010955,47187.0,47185.0,0.7579835]
[1641031673131,0.00010955,47187.0,47186.0,0.5972141]
[1641031673332,0.64920497,47195.0,47186.0,0.5972141]
[1641031673532,0.64920497,47195.0,47186.0,0.4112251]
[1641031673732,0.00021909,47193.0,47186.0,0.4112251]
[1641031674135,0.00020084,47192.0,47186.0,0.4112251]
[1641031674535,0.00018258,47191.0,47187.0,0.338967]
[1641031674735,0.00018258,47191.0,47190.0,0.338967]
[1641031674935,0.0002,47195.0,47190.0,0.5695004]
[1641031675337,0.00021909,47193.0,47190.0,0.5695004]
[1641031675777,0.00020084,47192.0,47190.0,0.5695004]
[1641031675979,0.00020084,47192.0,47191.0,0.22754469]
[1641031676177,0.0002,47195.0,47191.0,0.22754469]
[1641031676681,0.00021909,47193.0,47191.0,0.22754469]
[1641031676878,0.00021909,47193.0,47192.0,0.432978]
[1641031677079,0.0002,47195.0,47192.0,0.30843876]
[1641031677379,0.0002,47195.0,47193.0,0.24844692]
[1641031677681,0.00053735,47194.0,47193.0,0.24844692]
[1641031678279,0.00053735,47194.0,47190.0,0.60676806]
[1641031678678,0.00021909,47193.0,47191.0,0.22062965]
[1641031678879,0.00021909,47193.0,47190.0,0.32882842]
[1641031679079,0.00020084,47192.0,47190.0,0.32882842]
[1641031679541,0.0003,47194.0,47191.0,0.22435051]
[1641031680032,0.00021909,47193.0,47191.0,0.22435051]
[1641031680432,0.00020084,47192.0,47191.0,0.22435051]
[1641031680632,0.00020084,47192.0,47191.0,0.22419051]
[1641031682032,0.00020084,47192.0,47191.0,0.22296051]
[1641031682430,0.00020084,47192.0,47191.0,0.35951387]
[1641031682632,0.00020084,47192.0,47191.0,0.45951387]
[1641031682836,0.00020084,47192.0,47191.0,0.22554628]
[1641031683272,0.00020084,47192.0,47191.0,0.22570351]
[1641031683473,0.00020084,47192.0,47191.0,0.00258577]
[1641031684476,0.00020084,47192.0,47191.0,0.22289772]
[1641031684674,0.00020084,47192.0,47191.0,0.00258577]
[1641031685075,0.00020084,47192.0,47191.0,0.35792666]
[1641031685479,0.00020084,47192.0,47191.0,0.45792666]
[1641031687031,0.00020084,47192.0,47191.0,0.35792666]
[1641031687230,0.00020084,47192.0,47191.0,0.35774666]
[1641031687434,0.00020084,47192.0,47191.0,0.35680188]
[1641031688933,0.00020084,47192.0,47191.0,0.35360188]
[1641031689335,0.00162214,47192.0,47190.0,0.15]
[1641031689735,0.00018258,47191.0,47190.0,0.15]
[1641031689938,0.0014364,47191.0,47190.0,0.14857]
[1641031690339,0.27806615,47191.0,47190.0,0.14857]
[1641031690537,0.71582524,47191.0,47190.0,0.14857]
[1641031690782,0.77903824,47191.0,47190.0,0.14857]
[1641031694181,0.92903823,47191.0,47190.0,0.14857]
[1641031694382,1.08903823,47191.0,47185.0,0.27889509]
[1641031694633,0.49351365,47186.0,47185.0,0.27889509]
[1641031694830,0.55672665,47186.0,47185.0,0.27889509]
[1641031695032,0.55681794,47186.0,47185.0,0.27889509]
[1641031695230,0.85040718,47186.0,47185.0,0.27889509]
[1641031695430,0.90040718,47186.0,47185.0,0.27889509]
[1641031695630,1.38997317,47186.0,47185.0,0.27889509]
[1641031697533,1.28997318,47186.0,47185.0,0.27889509]
[1641031697932,1.28997318,47186.0,47185.0,0.54925983]
[1641031697933,0.49085838,47186.0,47185.0,0.54925983]
[1641031698131,0.43785038,47186.0,47185.0,0.54925983]
[1641031698392,0.43785038,47186.0,47185.0,0.27889509]
[1641031698796,9.129e-05,47186.0,47185.0,0.27889509]
[1641031699893,9.129e-05,47186.0,47185.0,0.61786209]
[1641031700396,0.00151342,47186.0,47185.0,0.84629716]
[1641031700992,0.00151342,47186.0,47185.0,0.89928616]
[1641031705034,0.00151342,47186.0,47185.0,0.61786209]
[1641031707682,0.00151342,47186.0,47185.0,0.67085309]
[1641031708082,0.00151342,47186.0,47185.0,0.6721416]
[1641031709531,0.00151342,47186.0,47185.0,0.6191506]
[1641031712830,0.00151342,47186.0,47185.0,0.84416278]
[1641031717837,0.00151342,47186.0,47185.0,0.94416278]
[1641031719036,0.00151342,47186.0,47185.0,1.07733614]
[1641031719236,0.00151342,47186.0,47185.0,1.17733614]
[1641031720437,0.00151342,47186.0,47185.0,1.04416278]
[1641031724931,0.00142213,47186.0,47185.0,1.04416278]
[1641031725131,0.00142213,47186.0,47185.0,1.54416278]
[1641031726731,0.00142213,47186.0,47185.0,1.04416278]
[1641031728379,0.00142213,47186.0,47185.0,0.94416278]
[1641031729984,0.00142213,47186.0,47185.0,1.04416278]
[1641031732534,0.00142213,47186.0,47185.0,1.54416278]
[1641031743778,0.00142213,47186.0,47185.0,1.04416278]
[1641031743980,0.00142213,47186.0,47185.0,1.54416278]
[1641031748635,0.00142213,47186.0,47185.0,1.3191506]
[1641031753887,0.00142213,47186.0,47185.0,1.32033806]
[1641031756842,0.00142213,47186.0,47185.0,0.82033806]
[1641031757042,0.00142213,47186.0,47185.0,1.05517751]
[1641031757943,0.00142213,47186.0,47185.0,1.55517751]
[1641031760490,0.00142213,47186.0,47185.0,1.32033806]
[1641031767905,0.00142213,47186.0,47185.0,2.02357105]
[1641031769643,0.00142213,47186.0,47185.0,1.32033806]
[1641031772750,0.00142213,47186.0,47185.0,2.02357105]
[1641031773389,0.00142213,47186.0,47185.0,1.32033806]
[1641031774090,0.00142213,47186.0,47185.0,2.02328701]
[1641031774590,0.00142213,47186.0,47185.0,1.32033806]
[1641031776092,0.00142213,47186.0,47185.0,2.02356617]
[1641031778944,0.00142213,47186.0,47185.0,1.52356617]
[1641031779445,0.00142213,47186.0,47185.0,0.82033806]
[1641031779647,0.00142213,47186.0,47185.0,1.06809028]
[1641031780044,0.00142213,47186.0,47185.0,1.56809028]
[1641031784090,0.00142213,47186.0,47185.0,2.27131839]
[1641031784531,0.00142213,47186.0,47185.0,1.56809028]
[1641031786130,0.00142213,47186.0,47185.0,2.27131839]
[1641031787332,0.00142213,47186.0,47185.0,1.92356617]
[1641031787534,0.00142213,47186.0,47185.0,1.82356617]
[1641031787934,0.00142213,47186.0,47185.0,0.78137106]
[1641031788133,0.00142213,47186.0,47185.0,1.12033806]
[1641031788393,0.00142213,47186.0,47185.0,0.62033806]
[1641031788595,0.00264097,47186.0,47185.0,0.28137106]
[1641031793738,0.00264097,47186.0,47185.0,0.27637106]
[1641031801540,0.72511373,47186.0,47185.0,0.27637106]
[1641031802138,0.00264097,47186.0,47185.0,0.27637106]
[1641031803494,0.12984272,47185.0,47183.0,0.47121892]
[1641031803692,0.43736155,47184.0,47183.0,0.47121892]
[1641031804492,0.50057455,47184.0,47183.0,0.47121892]
[1641031805693,0.21745317,47184.0,47183.0,0.47121892]
[1641031808334,0.11745318,47184.0,47183.0,0.47121892]
[1641031809736,0.05424018,47184.0,47183.0,0.47121892]
[1641031810784,0.0007598,47184.0,47183.0,0.47121892]
[1641031810985,0.12984272,47185.0,47183.0,0.47121892]
[1641031812085,0.00085174,47184.0,47183.0,0.47121892]
[1641031812885,0.05385174,47184.0,47183.0,0.47121892]
[1641031813087,0.05427678,47184.0,47183.0,0.47121892]
[1641031821296,0.05427678,47184.0,47183.0,0.47364126]
[1641031821691,0.05569915,47184.0,47183.0,0.47364126]
[1641031823549,0.00269915,47184.0,47183.0,0.47364126]
[1641031823746,0.00184741,47184.0,47183.0,0.47364126]
[1641031823945,0.00142237,47184.0,47183.0,0.47364126]
[1641031824746,0.00142237,47184.0,47183.0,1.03988422]
[1641031825547,0.00142237,47184.0,47183.0,0.81260826]
[1641031832447,0.00142237,47184.0,47183.0,0.47364126]
[1641031835888,0.00046152,47184.0,47183.0,0.47364126]
[1641031842590,0.00046152,47184.0,47183.0,0.81260826]
[1641031844292,0.00027164,47184.0,47183.0,0.81260826]
[1641031847547,0.00118647,47184.0,47183.0,0.81260826]
[1641031851490,0.12678895,47185.0,47184.0,0.338967]
[1641031851789,0.12686198,47185.0,47184.0,0.338967]
[1641031855438,0.12686198,47185.0,47183.0,0.47364126]
[1641031859087,0.12686198,47185.0,47183.0,0.49553894]
[1641031860838,0.12686198,47185.0,47183.0,0.51400915]
[1641031861039,0.12686198,47185.0,47183.0,0.49211147]
[1641031861240,0.12686198,47185.0,47183.0,0.51134911]
[1641031861440,0.12686198,47185.0,47183.0,0.4928789]
[1641031862240,0.12686198,47185.0,47183.0,0.51388889]
[1641031862441,0.12686198,47185.0,47183.0,0.49465125]
[1641031863291,0.12686198,47185.0,47183.0,0.51272562]
[1641031863493,0.12686198,47185.0,47183.0,0.49171563]
[1641031864297,0.12686198,47185.0,47183.0,0.49229019]
[1641031865198,0.12686198,47185.0,47183.0,0.51137183]
[1641031865398,0.12686198,47185.0,47183.0,0.4927229]
[1641031866198,0.12686198,47185.0,47183.0,0.5128861]
[1641031866396,0.12686198,47185.0,47183.0,0.49380446]
[1641031867047,0.12686198,47185.0,47184.0,0.21906526]
[1641031867441,0.12686198,47185.0,47183.0,0.49525102]
[1641031868441,0.12686198,47185.0,47184.0,0.21856544]
[1641031868642,0.12686198,47185.0,47183.0,0.49525102]
[1641031868842,0.12686198,47185.0,47183.0,0.51584007]
[1641031869241,0.12686198,47185.0,47183.0,0.71825448]
[1641031869442,0.12686198,47185.0,47184.0,0.21867363]
[1641031870647,0.12686198,47185.0,47183.0,0.73501896]
[1641031870889,0.12686198,47185.0,47184.0,0.21839828]
[1641031872090,0.13547198,47185.0,47184.0,0.21839828]
[1641031872288,0.13547198,47185.0,47184.0,0.60858418]
[1641031872491,0.13547198,47185.0,47184.0,0.65858418]
[1641031872687,0.13547198,47185.0,47184.0,0.75858418]
[1641031872891,0.13547198,47185.0,47184.0,0.76219502]
[1641031873093,0.13547198,47185.0,47184.0,0.89536838]
[1641031873492,0.13547198,47185.0,47184.0,0.91710218]
[1641031873690,0.13547198,47185.0,47184.0,0.6987039]
[1641031873890,0.13547198,47185.0,47184.0,0.96906864]
[1641031874559,0.02122245,47192.0,47188.0,0.052975]
[1641031874749,0.0002,47195.0,47191.0,0.338967]
[1641031874951,0.00010955,47191.0,47190.0,0.05297043]
[1641031875149,0.00010955,47191.0,47190.0,0.39193743]
[1641031876049,0.00010955,47191.0,47190.0,0.44490943]
[1641031876449,0.00010955,47191.0,47190.0,0.71629086]
[1641031876649,0.00010955,47191.0,47190.0,0.73922277]
[1641031877148,0.00010955,47191.0,47190.0,0.83922277]
[1641031877549,0.00010955,47191.0,47190.0,0.85983786]
[1641031877749,0.00010955,47191.0,47190.0,0.83902287]
[1641031878150,0.00010955,47191.0,47190.0,0.78605244]
[1641031878691,0.00010955,47191.0,47190.0,0.78488534]
[1641031879195,0.00010955,47191.0,47190.0,0.51266618]
[1641031879691,0.00010955,47191.0,47190.0,0.51359318]
[1641031880493,0.00010955,47191.0,47190.0,0.53290547]
[1641031880692,0.00010955,47191.0,47190.0,0.51253048]
[1641031881295,0.00010955,47191.0,47190.0,0.74724699]
[1641031881692,0.00010955,47191.0,47190.0,0.76711943]
[1641031881895,0.00010955,47191.0,47190.0,1.45103525]
[1641031882362,0.00010955,47191.0,47190.0,1.55103525]
[1641031882564,0.00010955,47191.0,47190.0,0.86629954]
[1641031882762,0.00010955,47191.0,47190.0,1.3464271]
[1641031882963,0.0002,47199.0,47190.0,1.3464271]
[1641031882964,10.08638634,47202.0,47194.0,0.338967]
[1641031883163,9.62528048,47202.0,47201.0,0.0012064]
[1641031883363,9.62528048,47202.0,47201.0,1.27548528]
[1641031883364,9.62448048,47202.0,47201.0,1.27548528]
[1641031883565,9.62348048,47202.0,47201.0,1.42548528]
[1641031883766,9.62238048,47202.0,47201.0,1.47548528]
[1641031883962,9.62108048,47202.0,47201.0,1.47548528]
[1641031884164,9.61968048,47202.0,47201.0,1.47548528]
[1641031884363,9.61848048,47202.0,47201.0,1.47548528]
[1641031884562,9.61708048,47202.0,47201.0,1.99691259]
[1641031884763,9.61568048,47202.0,47201.0,1.99691259]
[1641031884965,9.61418048,47202.0,47201.0,2.04986659]
[1641031885163,9.61298048,47202.0,47201.0,1.20986659]
[1641031885464,9.61238048,47202.0,47201.0,1.91007104]
[1641031885662,9.61098048,47202.0,47201.0,1.93182792]
[1641031885895,9.61068048,47202.0,47201.0,1.93182792]
[1641031886097,9.61068048,47202.0,47201.0,1.23162347]
[1641031886298,9.61058048,47202.0,47201.0,0.94658011]
[1641031886495,9.61018048,47202.0,47201.0,1.54088485]
[1641031886695,9.61008048,47202.0,47201.0,1.5605315]
[1641031886894,9.61008048,47202.0,47201.0,1.25324702]
[1641031886895,9.60918048,47202.0,47201.0,1.25324702]
[1641031887495,9.60918048,47202.0,47201.0,1.38642038]
[1641031887697,9.60918048,47202.0,47201.0,1.4069313]
[1641031887897,9.60898048,47202.0,47201.0,1.36530465]
[1641031888699,9.60898048,47202.0,47201.0,1.38348709]
[1641031888900,9.60898048,47202.0,47201.0,1.36297617]
[1641031889098,9.60898048,47202.0,47201.0,1.36659958]
[1641031889643,9.60898048,47202.0,47201.0,1.25501089]
[1641031889848,9.60898048,47202.0,47201.0,1.23682845]
[1641031890042,9.60848048,47202.0,47201.0,1.23682845]
[1641031890245,9.60808048,47202.0,47201.0,1.23682845]
[1641031890642,9.60760049,47202.0,47201.0,1.38815077]
[1641031890842,9.60760049,47202.0,47201.0,1.3665661]
[1641031891346,9.60760049,47202.0,47201.0,0.96614634]
[1641031891559,9.60760049,47202.0,47201.0,0.72197682]
[1641031891746,9.60760049,47202.0,47201.0,0.04002726]
[1641031891945,9.60760049,47202.0,47201.0,0.0218783]
[1641031892943,9.60760049,47202.0,47201.0,0.00362341]
[1641031894100,9.62655014,47202.0,47201.0,0.00362341]
[1641031894905,9.60760049,47202.0,47201.0,0.00362341]
[1641031895102,9.62719365,47202.0,47201.0,0.00362341]
[1641031895907,9.62905602,47202.0,47201.0,0.00362341]
[1641031897047,9.62657354,47202.0,47201.0,0.00362341]
[1641031897840,9.60760049,47202.0,47201.0,0.00362341]
[1641031898041,9.62611481,47202.0,47201.0,0.00362341]
[1641031898840,9.60760049,47202.0,47201.0,0.00362341]
[1641031900442,9.52553484,47202.0,47201.0,0.00362341]
[1641031901092,9.54406205,47202.0,47201.0,0.00362341]
[1641031902694,9.52553484,47202.0,47201.0,0.00362341]
[1641031912360,9.52553484,47202.0,47201.0,0.70382786]
[1641031913964,9.52553484,47202.0,47201.0,0.72353159]
[1641031914863,9.52553484,47202.0,47201.0,0.74246448]
[1641031915663,9.52553484,47202.0,47201.0,0.70382786]
[1641031915894,9.52553484,47202.0,47201.0,0.72559127]
[1641031916894,9.52553484,47202.0,47201.0,0.74664143]
[1641031917095,9.52553484,47202.0,47201.0,0.72487802]
[1641031917496,9.52553484,47202.0,47201.0,0.02467357]
[1641031917895,9.52553484,47202.0,47201.0,0.04404399]
[1641031918099,9.52553484,47202.0,47201.0,0.02299383]
[1641031919096,9.52553484,47202.0,47201.0,0.00362341]
[1641031925892,9.52553484,47202.0,47201.0,0.34259041]
[1641031926093,9.52553484,47202.0,47201.0,0.44259041]
[1641031926292,9.52553484,47202.0,47201.0,0.94259041]
[1641031926892,9.52553484,47202.0,47201.0,0.9626982]
[1641031927347,9.52481489,47202.0,47201.0,0.9626982]
[1641031927945,9.52481489,47202.0,47201.0,0.98192587]
[1641031928145,9.52481489,47202.0,47201.0,0.96181808]
[1641031928746,9.52481489,47202.0,47201.0,1.01181808]
[1641031928946,9.52481489,47202.0,47201.0,1.03140397]
[1641031929149,9.52481489,47202.0,47201.0,1.0121763]
[1641031930049,9.52481489,47202.0,47201.0,1.03219578]
[1641031930252,9.52481489,47202.0,47201.0,1.01260989]
[1641031931092,9.52481489,47202.0,47201.0,1.01457553]
[1641031932092,9.52481489,47202.0,47201.0,1.03499987]
[1641031932393,8.52481489,47202.0,47201.0,1.01301475]
[1641031933196,8.52481489,47202.0,47201.0,1.03190844]
[1641031933395,8.52481489,47202.0,47201.0,1.0114841]
[1641031933997,8.52481489,47202.0,47201.0,1.0314032]
[1641031934398,8.52481489,47202.0,47201.0,1.01250951]
[1641031934852,8.52481489,47202.0,47201.0,1.0136965]
[1641031935053,8.52481489,47202.0,47201.0,1.0354061]
[1641031935251,8.52481489,47202.0,47201.0,1.065487]
[1641031936056,8.52481489,47202.0,47201.0,1.0839897]
[1641031936252,8.52481489,47202.0,47201.0,1.0622801]
[1641031937153,8.52481489,47202.0,47201.0,1.08320833]
[1641031937354,8.52481489,47202.0,47201.0,1.06470563]
[1641031938155,8.52481489,47202.0,47201.0,1.08275572]
[1641031938393,8.52481489,47202.0,47201.0,1.06182749]
[1641031939095,8.52481489,47202.0,47201.0,1.08032505]
[1641031939893,8.52481489,47202.0,47201.0,1.0437774]
[1641031940697,8.52481489,47202.0,47201.0,1.06191851]
[1641031941299,8.52481489,47202.0,47201.0,1.08175902]
[1641031941496,8.52481489,47202.0,47201.0,1.06361791]
[1641031942051,8.52481489,47202.0,47201.0,1.08443153]
[1641031942544,8.52481489,47202.0,47201.0,1.0437774]
[1641031943147,8.52481489,47202.0,47201.0,1.06516459]
[1641031944048,8.52481489,47202.0,47201.0,1.08493835]
[1641031944548,8.52481489,47202.0,47201.0,1.06355116]
[1641031945249,8.52481489,47202.0,47201.0,1.08165345]
[1641031946296,8.52481489,47202.0,47201.0,1.10361598]
[1641031946494,8.52481489,47202.0,47201.0,1.06573993]
[1641031947099,8.52481489,47202.0,47201.0,1.08450143]
[1641031947300,8.52481489,47202.0,47201.0,1.0625389]
[1641031947597,8.52481489,47202.0,47201.0,1.71274335]
[1641031948200,8.52481489,47202.0,47201.0,1.73419317]
[1641031948397,8.52481489,47202.0,47201.0,1.01522722]
[1641031949197,8.52481489,47202.0,47201.0,1.0747633]
[1641031950155,8.52481489,47202.0,47201.0,1.09591992]
[1641031950355,8.52481489,47202.0,47201.0,1.05373402]
[1641031951854,8.52481489,47202.0,47201.0,1.05087041]
[1641031952254,8.52481489,47202.0,47201.0,1.06956987]
[1641031952455,8.52481489,47202.0,47201.0,1.05127686]
[1641031953308,8.52481489,47202.0,47201.0,1.05178572]
[1641031954311,8.52481489,47202.0,47201.0,1.07155638]
[1641031954510,8.52961489,47202.0,47201.0,0.69325023]
[1641031954710,0.95,47201.0,47200.0,0.66191344]
[1641031954911,0.95,47201.0,47198.0,0.44652725]
[1641031954913,0.95123119,47199.0,47198.0,0.44652725]
[1641031955110,1.67190384,47199.0,47196.0,0.00864219]
[1641031955310,0.00121463,47197.0,47196.0,0.00864219]
[1641031955514,1.56267224,47197.0,47196.0,0.00864219]
[1641031955713,1.60085149,47197.0,47196.0,0.00864219]
[1641031955914,2.10091274,47197.0,47196.0,0.00864219]
[1641031956112,2.15091274,47197.0,47196.0,0.00864219]
[1641031956312,2.15091274,47197.0,47175.0,0.93484244]
[1641031956313,2.1712607,47197.0,47175.0,0.93484244]
[1641031956513,0.00128131,47186.0,47175.0,0.93484244]
[1641031956711,1.23758254,47186.0,47175.0,0.93484244]
[1641031956914,1.91152242,47186.0,47178.0,0.00835844]
[1641031957353,0.96152242,47186.0,47178.0,0.00835844]
[1641031957552,1.39367721,47186.0,47178.0,0.00835844]
[1641031957751,1.29367721,47186.0,47178.0,0.00835844]
[1641031958454,1.31368691,47186.0,47178.0,0.00835844]
[1641031958851,1.02738568,47186.0,47178.0,0.00835844]
[1641031959055,0.99253651,47186.0,47178.0,0.00835844]
[1641031959255,1.01207795,47186.0,47178.0,0.00835844]
[1641031959452,0.99206825,47186.0,47178.0,0.00835844]
[1641031960052,1.31427444,47186.0,47178.0,0.00835844]
[1641031960252,1.33556708,47186.0,47178.0,0.00835844]
[1641031960454,1.31602564,47186.0,47178.0,0.00835844]
[1641031960655,1.31602564,47186.0,47185.0,0.12918207]
[1641031961308,1.33693096,47186.0,47185.0,0.12918207]
[1641031961605,1.31563832,47186.0,47185.0,0.12918207]
[1641031962905,1.33657589,47186.0,47185.0,0.12918207]
[1641031963106,1.31567057,47186.0,47185.0,0.12918207]
[1641031963306,1.3345508,47186.0,47185.0,0.12918207]
[1641031963505,1.31361323,47186.0,47185.0,0.12918207]
[1641031964108,1.36361323,47186.0,47185.0,0.12918207]
[1641031964306,1.38538932,47186.0,47185.0,0.12918207]
[1641031964551,1.36650909,47186.0,47185.0,0.12918207]
[1641031964748,2.20977369,47186.0,47185.0,0.12918207]
[1641031965148,1.1201982,47186.0,47185.0,0.12918207]
[1641031965449,0.78081282,47186.0,47185.0,0.12918207]
[1641031965848,0.02304002,47186.0,47185.0,0.12918207]
[1641031966250,0.04130722,47186.0,47185.0,0.12918207]
[1641031966448,0.01954851,47186.0,47185.0,0.12918207]
[1641031967349,0.0182672,47186.0,47185.0,0.12918207]
[1641031967547,0.30933342,47191.0,47185.0,0.12918207]
[1641031967748,0.31057614,47191.0,47185.0,0.12918207]
[1641031967948,0.31057614,47191.0,47186.0,9.129e-05]
[1641031968401,0.3319217,47191.0,47186.0,9.129e-05]
[1641031968601,0.339368,47190.0,47186.0,9.129e-05]
[1641031969001,0.3319217,47191.0,47186.0,9.129e-05]
[1641031969401,0.02057464,47190.0,47186.0,9.129e-05]
[1641031970603,0.00124272,47191.0,47186.0,9.129e-05]
[1641031970803,0.24714518,47191.0,47186.0,9.129e-05]
[1641031971306,0.052992,47190.0,47186.0,9.129e-05]
[1641031979653,0.052995,47188.0,47186.0,9.129e-05]
[1641031979852,0.06275,47187.0,47186.0,9.129e-05]
[1641031980053,0.052995,47188.0,47186.0,9.129e-05]
[1641031982054,0.679368,47187.0,47186.0,9.129e-05]
[1641031982454,0.339368,47187.0,47186.0,9.129e-05]
[1641031983504,0.34951492,47187.0,47186.0,9.129e-05]
[1641031983906,0.35077796,47187.0,47186.0,9.129e-05]
[1641031984312,0.95,47186.0,47185.0,0.12670336]
[1641031984520,1.21697046,47186.0,47185.0,0.12670336]
[1641031984908,0.21697046,47186.0,47185.0,0.12670336]
[1641031985410,0.23819697,47186.0,47185.0,0.12670336]
[1641031986010,0.13819698,47186.0,47185.0,0.12670336]
[1641031986309,0.13819698,47186.0,47185.0,0.12908679]
[1641031986710,0.11697047,47186.0,47185.0,0.12908679]
[1641031987366,0.31697047,47186.0,47185.0,0.12908679]
[1641031987964,0.11697047,47186.0,47185.0,0.12908679]
[1641031988564,0.13558758,47186.0,47185.0,0.12908679]
[1641031989165,0.33558758,47186.0,47185.0,0.12670679]
[1641031989563,0.2,47184.0,47180.0,0.0086427]
[1641031989766,0.70425925,47181.0,47180.0,0.0086427]
[1641031989963,1.37288994,47181.0,47180.0,0.0086427]
[1641031990164,1.52288994,47181.0,47180.0,0.0086427]
[1641031990363,0.00125831,47180.0,47178.0,0.00835896]